fUSD/lending_fUSD_20260605
["ID","MTS","AMOUNT","RATE_DAILY","PERIOD"]
[424189558,1780635064000,-350.0,0.00037073,3]
[424189557,1780635064000,-155.19656996,0.00037067,60]
[424189556,1780635064000,-2002.5809,0.00037057,2]
[424189545,1780635064000,-200.0,0.00037,15]
[424189552,1780635064000,-356.89064771,0.00037052,2]
[424189536,1780635064000,-500.0,0.00036995,120]
[424189549,1780635064000,-214.34375214,0.00037002,30]
[424189548,1780635064000,-200.607912,0.00037,14]
[424189564,1780635064000,-1592.0,0.00037145,11]
[424189563,1780635064000,-1592.0,0.00037145,11]
[424189562,1780635064000,-2339.0,0.00037145,11]
[424189559,1780635064000,-1592.0,0.00037077,11]
[424189569,1780635064000,-309.0,0.000372,2]
[424189561,1780635064000,-2321.0,0.00037135,11]
[424189555,1780635064000,-10000.0,0.00037057,2]
[424189550,1780635064000,-164.0,0.00037006,11]
[424189547,1780635064000,-1711.94,0.00037,30]
[424189551,1780635064000,-96752.24911089,0.0003705,2]
[424189554,1780635064000,-578192.75130148,0.00037057,2]
[424189553,1780635064000,-151.0,0.00037054,14]
[424189560,1780635064000,-1592.0,0.00037135,11]
[424189644,1780635065000,-386.52401027,0.00037798,50]
[424189646,1780635065000,-8182.0,0.00037798,120]
[424189649,1780635065000,-163.0,0.000378,7]
[424189642,1780635065000,-164.0,0.00037785,11]
[424189641,1780635065000,-1592.0,0.00037785,11]
[424189631,1780635065000,-735.5978102,0.00037764,10]
[424189638,1780635065000,-250.0,0.00037784,2]
[424189634,1780635065000,-1592.0,0.00037775,11]
[424189635,1780635065000,-8182.0,0.00037778,120]
[424189632,1780635065000,-151.59987049,0.00037769,2]
[424189648,1780635065000,-244.59,0.000378,2]
[424189640,1780635065000,-254.47008574,0.00037784,2]
[424189630,1780635065000,-164.96420872,0.00037746,2]
[424189658,1780635065000,-1480.41,0.00037808,2]
[424189639,1780635065000,-250.0,0.00037784,2]
[424189645,1780635065000,-1479.63722076,0.00037798,30]
[424189643,1780635065000,-8182.0,0.00037788,120]
[424189647,1780635065000,-259.32,0.000378,19]
[424189651,1780635065000,-636.28,0.000378,2]
[424189659,1780635065000,-1480.41,0.00037808,2]
[424189660,1780635065000,-1480.41,0.00037808,2]
[424189654,1780635065000,-994.18,0.000378,2]
[424189653,1780635065000,-175850.85,0.000378,2]
[424189661,1780635065000,-1480.41,0.00037808,2]
[424189652,1780635065000,-175850.85,0.000378,2]
[424189662,1780635065000,-1480.41,0.00037808,2]
[424189656,1780635065000,-1480.41,0.00037808,2]
[424189633,1780635065000,-152.80592456,0.00037772,2]
[424189650,1780635065000,-500.0,0.000378,2]
[424189627,1780635065000,-2321.0,0.000377,11]
[424189616,1780635065000,-1000.0,0.0003767,2]
[424189625,1780635065000,-160.0,0.000377,19]
[424189609,1780635065000,-51350.0,0.000376,30]
[424189600,1780635065000,-30488.83160016,0.000375,120]
[424189602,1780635065000,-151.59987049,0.00037569,2]
[424189610,1780635065000,-175850.85,0.000376,2]
[424189601,1780635065000,-1592.0,0.00037535,11]
[424189603,1780635065000,-152.80592456,0.00037572,2]
[424189604,1780635065000,-1592.0,0.0003758,11]
[424189605,1780635065000,-500.0,0.00037587,13]
[424189607,1780635065000,-2321.0,0.00037596,11]
[424189606,1780635065000,-4421.96119872,0.0003759,2]
[424189608,1780635065000,-1592.0,0.000376,11]
[424189612,1780635065000,-164.0,0.00037646,11]
[424189622,1780635065000,-152.80592456,0.00037672,2]
[424189628,1780635065000,-2000.0,0.000377,7]
[424189623,1780635065000,-491.12,0.00037674,30]
[424189617,1780635065000,-150.0,0.00037671,30]
[424189614,1780635065000,-151.59987049,0.00037669,2]
[424189619,1780635065000,-159.20318347,0.00037671,30]
[424189620,1780635065000,-159.20318346,0.00037671,30]
[424189613,1780635065000,-264.58,0.0003765,78]
[424189618,1780635065000,-159.20318347,0.00037671,30]
[424189615,1780635065000,-500.0,0.0003767,2]
[424189611,1780635065000,-2000.0,0.00037616,30]
[424189621,1780635065000,-159.20318347,0.00037671,30]
[424189626,1780635065000,-132740.20841606,0.000377,7]
[424189629,1780635065000,-200.0,0.000377,10]
[424189637,1780635065000,-250.0,0.00037784,2]
[424189636,1780635065000,-9061.52280968,0.00037784,2]
[424189624,1780635065000,-150.0,0.00037694,2]
[424189657,1780635065000,-1480.41,0.00037808,2]
[424189655,1780635065000,-300.0,0.000378,10]
[424189674,1780635065000,-1480.41,0.00037808,2]
[424189699,1780635065000,-835.89,0.00037808,2]
[424189697,1780635065000,-835.89,0.00037808,2]
[424189700,1780635065000,-835.89,0.00037808,2]
[424189701,1780635065000,-835.89,0.00037808,2]
[424189703,1780635065000,-835.9786145,0.00037808,2]
[424189706,1780635065000,-500.0,0.00037808,2]
[424189710,1780635065000,-500.0,0.00037808,2]
[424189712,1780635065000,-500.0,0.00037808,2]
[424189704,1780635065000,-500.0,0.00037808,2]
[424189705,1780635065000,-500.0,0.00037808,2]
[424189702,1780635065000,-835.89,0.00037808,2]
[424189711,1780635065000,-500.0,0.00037808,2]
[424189707,1780635065000,-576.26566435,0.00037808,2]
[424189709,1780635065000,-500.0,0.00037808,2]
[424189708,1780635065000,-500.0,0.00037808,2]
[424189713,1780635065000,-500.0,0.00037808,2]
[424189715,1780635065000,-500.0,0.00037808,2]
[424189717,1780635065000,-500.0,0.00037808,2]
[424189716,1780635065000,-500.0,0.00037808,2]
[424189718,1780635065000,-500.0,0.00037808,2]
[424189722,1780635065000,-500.0,0.00037808,2]
[424189714,1780635065000,-500.0,0.00037808,2]
[424189719,1780635065000,-500.0,0.00037808,2]
[424189724,1780635065000,-500.0,0.00037808,2]
[424189720,1780635065000,-500.0,0.00037808,2]
[424189721,1780635065000,-500.0,0.00037808,2]
[424189725,1780635065000,-505.05411648,0.00037808,2]
[424189726,1780635065000,-1000.0,0.00037808,2]
[424189664,1780635065000,-1480.41,0.00037808,2]
[424189698,1780635065000,-835.89,0.00037808,2]
[424189696,1780635065000,-835.89,0.00037808,2]
[424189723,1780635065000,-500.0,0.00037808,2]
[424189694,1780635065000,-835.89,0.00037808,2]
[424189695,1780635065000,-835.89,0.00037808,2]
[424189675,1780635065000,-1480.41,0.00037808,2]
[424189669,1780635065000,-1480.41,0.00037808,2]
[424189670,1780635065000,-1480.41,0.00037808,2]
[424189666,1780635065000,-1480.41,0.00037808,2]
[424189663,1780635065000,-1480.41,0.00037808,2]
[424189668,1780635065000,-1480.41,0.00037808,2]
[424189673,1780635065000,-1480.41,0.00037808,2]
[424189672,1780635065000,-1480.41,0.00037808,2]
[424189667,1780635065000,-1480.41,0.00037808,2]
[424189665,1780635065000,-1480.41,0.00037808,2]
[424189677,1780635065000,-1480.41,0.00037808,2]
[424189676,1780635065000,-1480.41,0.00037808,2]
[424189687,1780635065000,-835.89,0.00037808,2]
[424189671,1780635065000,-1480.41,0.00037808,2]
[424189678,1780635065000,-1480.41,0.00037808,2]
[424189683,1780635065000,-835.89,0.00037808,2]
[424189692,1780635065000,-835.89,0.00037808,2]
[424189691,1780635065000,-835.89,0.00037808,2]
[424189693,1780635065000,-835.89,0.00037808,2]
[424189689,1780635065000,-835.89,0.00037808,2]
[424189688,1780635065000,-835.89,0.00037808,2]
[424189685,1780635065000,-835.89,0.00037808,2]
[424189690,1780635065000,-835.89,0.00037808,2]
[424189686,1780635065000,-835.89,0.00037808,2]
[424189681,1780635065000,-835.89,0.00037808,2]
[424189682,1780635065000,-835.89,0.00037808,2]
[424189684,1780635065000,-835.89,0.00037808,2]
[424189679,1780635065000,-1480.42909483,0.00037808,2]
[424189680,1780635065000,-835.89,0.00037808,2]
[424189754,1780635066000,-164.844063,0.00037808,30]
[424189759,1780635066000,-164.844063,0.00037808,30]
[424189755,1780635066000,-164.844063,0.00037808,30]
[424189756,1780635066000,-164.844063,0.00037808,30]
[424189757,1780635066000,-164.844063,0.00037808,30]
[424189758,1780635066000,-164.844063,0.00037808,30]
[424189760,1780635066000,-164.844063,0.00037808,30]
[424189761,1780635066000,-164.844063,0.00037808,30]
[424189753,1780635066000,-164.844063,0.00037808,30]
[424189762,1780635066000,-164.844063,0.00037808,30]
[424189772,1780635066000,-1189.19863,0.00037808,30]
[424189763,1780635066000,-164.844063,0.00037808,30]
[424189767,1780635066000,-164.844063,0.00037808,30]
[424189766,1780635066000,-164.844063,0.00037808,30]
[424189765,1780635066000,-164.844063,0.00037808,30]
[424189768,1780635066000,-1189.19863,0.00037808,30]
[424189770,1780635066000,-1189.19863,0.00037808,30]
[424189771,1780635066000,-1189.19863,0.00037808,30]
[424189773,1780635066000,-1189.19863,0.00037808,30]
[424189752,1780635066000,-164.844063,0.00037808,30]
[424189774,1780635066000,-1189.19863,0.00037808,30]
[424189764,1780635066000,-164.844063,0.00037808,30]
[424189749,1780635066000,-219.528184,0.00037808,30]
[424189729,1780635066000,-1000.0,0.00037808,2]
[424189740,1780635066000,-1000.0,0.00037808,2]
[424189779,1780635066000,-3962.057198,0.00037808,30]
[424189735,1780635066000,-1000.0,0.00037808,2]
[424189736,1780635066000,-1000.0,0.00037808,2]
[424189727,1780635066000,-1000.0,0.00037808,2]
[424189737,1780635066000,-1000.0,0.00037808,2]
[424189738,1780635066000,-1000.0,0.00037808,2]
[424189728,1780635066000,-1000.0,0.00037808,2]
[424189731,1780635066000,-1000.0,0.00037808,2]
[424189730,1780635066000,-1000.0,0.00037808,2]
[424189733,1780635066000,-1000.0,0.00037808,2]
[424189750,1780635066000,-176.413413,0.00037808,30]
[424189734,1780635066000,-1000.0,0.00037808,2]
[424189739,1780635066000,-1000.0,0.00037808,2]
[424189741,1780635066000,-1000.0,0.00037808,2]
[424189743,1780635066000,-1000.0,0.00037808,2]
[424189742,1780635066000,-1000.0,0.00037808,2]
[424189744,1780635066000,-1000.0,0.00037808,2]
[424189745,1780635066000,-570.8485447,0.00037808,2]
[424189746,1780635066000,-160.593445,0.00037808,30]
[424189747,1780635066000,-281.689614,0.00037808,30]
[424189751,1780635066000,-248.189265,0.00037808,30]
[424189748,1780635066000,-160.703618,0.00037808,30]
[424189732,1780635066000,-1000.0,0.00037808,2]
[424189777,1780635066000,-3962.057198,0.00037808,30]
[424189769,1780635066000,-1189.19863,0.00037808,30]
[424189821,1780635066000,-400.0,0.00037808,30]
[424189806,1780635066000,-177.553819,0.00037808,7]
[424189815,1780635066000,-177.553819,0.00037808,7]
[424189816,1780635066000,-151.0,0.00037808,30]
[424189804,1780635066000,-177.553819,0.00037808,7]
[424189805,1780635066000,-177.553819,0.00037808,7]
[424189811,1780635066000,-177.553819,0.00037808,7]
[424189808,1780635066000,-177.553819,0.00037808,7]
[424189809,1780635066000,-177.553819,0.00037808,7]
[424189810,1780635066000,-177.553819,0.00037808,7]
[424189807,1780635066000,-177.553819,0.00037808,7]
[424189814,1780635066000,-177.553819,0.00037808,7]
[424189812,1780635066000,-177.553819,0.00037808,7]
[424189820,1780635066000,-211.791225,0.00037808,30]
[424189823,1780635066000,-400.0,0.00037808,30]
[424189819,1780635066000,-151.0,0.00037808,30]
[424189824,1780635066000,-400.0,0.00037808,30]
[424189818,1780635066000,-151.0,0.00037808,30]
[424189822,1780635066000,-400.0,0.00037808,30]
[424189826,1780635066000,-400.0,0.00037808,30]
[424189825,1780635066000,-400.0,0.00037808,30]
[424189827,1780635066000,-400.0,0.00037808,30]
[424189775,1780635066000,-1189.19863,0.00037808,30]
[424189817,1780635066000,-151.0,0.00037808,30]
[424189802,1780635066000,-177.553819,0.00037808,7]
[424189813,1780635066000,-177.553819,0.00037808,7]
[424189800,1780635066000,-177.553819,0.00037808,7]
[424189776,1780635066000,-1189.19863,0.00037808,30]
[424189780,1780635066000,-1189.19863,0.00037808,30]
[424189778,1780635066000,-1189.19863,0.00037808,30]
[424189782,1780635066000,-1189.19863,0.00037808,30]
[424189792,1780635066000,-3962.057198,0.00037808,30]
[424189781,1780635066000,-3962.057198,0.00037808,30]
[424189801,1780635066000,-177.553819,0.00037808,7]
[424189787,1780635066000,-3962.057198,0.00037808,30]
[424189785,1780635066000,-3962.057198,0.00037808,30]
[424189784,1780635066000,-1189.19863,0.00037808,30]
[424189786,1780635066000,-1189.19863,0.00037808,30]
[424189790,1780635066000,-3962.057198,0.00037808,30]
[424189783,1780635066000,-3962.057198,0.00037808,30]
[424189789,1780635066000,-3962.057198,0.00037808,30]
[424189803,1780635066000,-177.553819,0.00037808,7]
[424189791,1780635066000,-1189.19863,0.00037808,30]
[424189799,1780635066000,-3962.057198,0.00037808,30]
[424189798,1780635066000,-3962.057198,0.00037808,30]
[424189795,1780635066000,-3962.057198,0.00037808,30]
[424189794,1780635066000,-3962.057198,0.00037808,30]
[424189797,1780635066000,-3962.057198,0.00037808,30]
[424189796,1780635066000,-3962.057198,0.00037808,30]
[424189793,1780635066000,-3962.057198,0.00037808,30]
[424189788,1780635066000,-1189.19863,0.00037808,30]
[424189882,1780635067000,-151.0,0.00037808,30]
[424189870,1780635067000,-238.116691,0.00037808,30]
[424189875,1780635067000,-238.116691,0.00037808,30]
[424189872,1780635067000,-238.116691,0.00037808,30]
[424189869,1780635067000,-238.116691,0.00037808,30]
[424189866,1780635067000,-238.116691,0.00037808,30]
[424189867,1780635067000,-238.116691,0.00037808,30]
[424189874,1780635067000,-238.116691,0.00037808,30]
[424189868,1780635067000,-238.116691,0.00037808,30]
[424189857,1780635067000,-151.0,0.00037808,30]
[424189864,1780635067000,-238.116691,0.00037808,30]
[424189859,1780635067000,-151.0,0.00037808,30]
[424189865,1780635067000,-238.116691,0.00037808,30]
[424189876,1780635067000,-238.116691,0.00037808,30]
[424189893,1780635067000,-1508.565413,0.00037808,30]
[424189871,1780635067000,-238.116691,0.00037808,30]
[424189862,1780635067000,-238.116691,0.00037808,30]
[424189889,1780635067000,-219.275614,0.00037808,30]
[424189886,1780635067000,-151.0,0.00037808,30]
[424189885,1780635067000,-151.0,0.00037808,30]
[424189887,1780635067000,-216.582973,0.00037808,30]
[424189895,1780635067000,-1508.565413,0.00037808,30]
[424189881,1780635067000,-151.0,0.00037808,30]
[424189894,1780635067000,-1508.565413,0.00037808,30]
[424189884,1780635067000,-151.0,0.00037808,30]
[424189877,1780635067000,-238.116691,0.00037808,30]
[424189880,1780635067000,-151.0,0.00037808,30]
[424189879,1780635067000,-210.364772,0.00037808,30]
[424189873,1780635067000,-238.116691,0.00037808,30]
[424189878,1780635067000,-151.0,0.00037808,30]
[424189883,1780635067000,-151.0,0.00037808,30]
[424189856,1780635067000,-157.848844,0.00037808,30]
[424189834,1780635067000,-400.0,0.00037808,30]
[424189860,1780635067000,-151.0,0.00037808,30]
[424189828,1780635067000,-400.0,0.00037808,30]
[424189841,1780635067000,-322.125899,0.00037808,30]
[424189830,1780635067000,-400.0,0.00037808,30]
[424189840,1780635067000,-322.125899,0.00037808,30]
[424189829,1780635067000,-400.0,0.00037808,30]
[424189838,1780635067000,-322.125899,0.00037808,30]
[424189833,1780635067000,-400.0,0.00037808,30]
[424189832,1780635067000,-400.0,0.00037808,30]
[424189836,1780635067000,-400.0,0.00037808,30]
[424189835,1780635067000,-400.0,0.00037808,30]
[424189837,1780635067000,-160.835098,0.00037808,30]
[424189831,1780635067000,-400.0,0.00037808,30]
[424189839,1780635067000,-322.125899,0.00037808,30]
[424189842,1780635067000,-322.125899,0.00037808,30]
[424189847,1780635067000,-322.125899,0.00037808,30]
[424189846,1780635067000,-322.125899,0.00037808,30]
[424189845,1780635067000,-322.125899,0.00037808,30]
[424189844,1780635067000,-322.125899,0.00037808,30]
[424189855,1780635067000,-151.0,0.00037808,30]
[424189849,1780635067000,-322.125899,0.00037808,30]
[424189843,1780635067000,-322.125899,0.00037808,30]
[424189850,1780635067000,-322.125899,0.00037808,30]
[424189853,1780635067000,-322.125899,0.00037808,30]
[424189852,1780635067000,-322.125899,0.00037808,30]
[424189851,1780635067000,-322.125899,0.00037808,30]
[424189854,1780635067000,-151.0,0.00037808,30]
[424189848,1780635067000,-322.125899,0.00037808,30]
[424189863,1780635067000,-238.116691,0.00037808,30]
[424189858,1780635067000,-151.0,0.00037808,30]
[424189861,1780635067000,-185.901162,0.00037808,30]
[424189891,1780635067000,-1508.565413,0.00037808,30]
[424189931,1780635067000,-3000.0,0.00037945,30]
[424189892,1780635067000,-1508.565413,0.00037808,30]
[424189929,1780635067000,-3000.0,0.00037945,30]
[424189927,1780635067000,-3000.0,0.00037945,30]
[424189934,1780635067000,-3000.0,0.00037945,30]
[424189935,1780635067000,-3000.0,0.00037945,30]
[424189932,1780635067000,-3000.0,0.00037945,30]
[424189930,1780635067000,-3000.0,0.00037945,30]
[424189937,1780635067000,-2471.63944742,0.00037945,30]
[424189936,1780635067000,-3000.0,0.00037945,30]
[424189947,1780635067000,-1592.0,0.00037996,11]
[424189945,1780635067000,-8182.0,0.0003799,120]
[424189948,1780635067000,-1592.0,0.00037996,11]
[424189946,1780635067000,-8182.0,0.0003799,120]
[424189938,1780635067000,-75488.12450359,0.00037957,2]
[424189940,1780635067000,-8182.0,0.0003797,120]
[424189923,1780635067000,-3000.0,0.00037945,30]
[424189941,1780635067000,-8182.0,0.0003798,120]
[424189943,1780635067000,-8185.28,0.0003798,120]
[424189944,1780635067000,-8182.0,0.0003799,120]
[424189949,1780635067000,-1592.0,0.00037996,11]
[424189951,1780635067000,-175850.85,0.00038,2]
[424189952,1780635067000,-166.66227481,0.00038,120]
[424189954,1780635067000,-684.81445313,0.00038,2]
[424189955,1780635067000,-305.61241067,0.00038,30]
[424189956,1780635067000,-186.0,0.00038,2]
[424189953,1780635067000,-718.0,0.00038,2]
[424189950,1780635067000,-151.0,0.00037997,14]
[424189959,1780635067000,-757.0,0.00038,30]
[424189958,1780635067000,-757.0,0.00038,30]
[424189957,1780635067000,-757.0,0.00038,30]
[424189888,1780635067000,-151.0,0.00037808,30]
[424189942,1780635067000,-8182.0,0.0003798,120]
[424189925,1780635067000,-3000.0,0.00037945,30]
[424189939,1780635067000,-2321.0,0.00037966,11]
[424189924,1780635067000,-3000.0,0.00037945,30]
[424189890,1780635067000,-1508.565413,0.00037808,30]
[424189926,1780635067000,-3000.0,0.00037945,30]
[424189896,1780635067000,-1508.565413,0.00037808,30]
[424189897,1780635067000,-1508.565413,0.00037808,30]
[424189903,1780635067000,-1508.565413,0.00037808,30]
[424189898,1780635067000,-1508.565413,0.00037808,30]
[424189904,1780635067000,-1508.565413,0.00037808,30]
[424189908,1780635067000,-150.0,0.0003783,120]
[424189906,1780635067000,-210.047439,0.00037808,30]
[424189907,1780635067000,-1592.0,0.00037827,11]
[424189905,1780635067000,-1508.565413,0.00037808,30]
[424189900,1780635067000,-1508.565413,0.00037808,30]
[424189909,1780635067000,-150.0,0.0003783,120]
[424189902,1780635067000,-1508.565413,0.00037808,30]
[424189901,1780635067000,-1508.565413,0.00037808,30]
[424189899,1780635067000,-1508.565413,0.00037808,30]
[424189933,1780635067000,-3000.0,0.00037945,30]
[424189928,1780635067000,-3000.0,0.00037945,30]
[424189911,1780635067000,-14123.50644868,0.00037837,2]
[424189922,1780635067000,-3000.0,0.00037945,30]
[424189921,1780635067000,-151.0,0.00037942,2]
[424189920,1780635067000,-164.0,0.0003792,11]
[424189919,1780635067000,-164.0,0.000379,11]
[424189917,1780635067000,-815.2,0.000379,120]
[424189918,1780635067000,-1592.0,0.000379,11]
[424189913,1780635067000,-300.0,0.00037845,3]
[424189916,1780635067000,-175850.85,0.000379,2]
[424189915,1780635067000,-164.0,0.00037894,11]
[424189912,1780635067000,-672.17793519,0.0003784,2]
[424189910,1780635067000,-158.69337599,0.0003783,120]
[424189914,1780635067000,-206.1928284,0.0003788,2]
[424189985,1780635068000,-754.0,0.00038,30]
[424189986,1780635068000,-754.0,0.00038,30]
[424189983,1780635068000,-754.0,0.00038,30]
[424189984,1780635068000,-754.0,0.00038,30]
[424189988,1780635068000,-754.0,0.00038,30]
[424189987,1780635068000,-754.0,0.00038,30]
[424189996,1780635068000,-754.0,0.00038,30]
[424189978,1780635068000,-754.0,0.00038,30]
[424189979,1780635068000,-754.0,0.00038,30]
[424189977,1780635068000,-754.0,0.00038,30]
[424189980,1780635068000,-754.0,0.00038,30]
[424189989,1780635068000,-754.0,0.00038,30]
[424189991,1780635068000,-754.0,0.00038,30]
[424189981,1780635068000,-754.0,0.00038,30]
[424189976,1780635068000,-754.0,0.00038,30]
[424189982,1780635068000,-754.0,0.00038,30]
[424189961,1780635068000,-757.0,0.00038,30]
[424189974,1780635068000,-754.0,0.00038,30]
[424189994,1780635068000,-754.0,0.00038,30]
[424189960,1780635068000,-757.0,0.00038,30]
[424189962,1780635068000,-757.0,0.00038,30]
[424189963,1780635068000,-757.0,0.00038,30]
[424189966,1780635068000,-757.0,0.00038,30]
[424189967,1780635068000,-757.0,0.00038,30]
[424189970,1780635068000,-754.0,0.00038,30]
[424189973,1780635068000,-754.0,0.00038,30]
[424189972,1780635068000,-754.0,0.00038,30]
[424189965,1780635068000,-757.0,0.00038,30]
[424189969,1780635068000,-754.0,0.00038,30]
[424189971,1780635068000,-754.0,0.00038,30]
[424189975,1780635068000,-754.0,0.00038,30]
[424189968,1780635068000,-754.0,0.00038,30]
[424189964,1780635068000,-757.0,0.00038,30]
[424189995,1780635068000,-754.0,0.00038,30]
[424190019,1780635068000,-754.0,0.00038,30]
[424189993,1780635068000,-754.0,0.00038,30]
[424190011,1780635068000,-754.0,0.00038,30]
[424190009,1780635068000,-754.0,0.00038,30]
[424190016,1780635068000,-754.0,0.00038,30]
[424190026,1780635068000,-845.0,0.00038,2]
[424190020,1780635068000,-754.0,0.00038,30]
[424190018,1780635068000,-754.0,0.00038,30]
[424190008,1780635068000,-754.0,0.00038,30]
[424189992,1780635068000,-754.0,0.00038,30]
[424190027,1780635068000,-401.0,0.00038,30]
[424190028,1780635068000,-3948229.65583612,0.00038,2]
[424190021,1780635068000,-151.0,0.00038,120]
[424190024,1780635068000,-45344.60238384,0.00038,10]
[424190022,1780635068000,-827.0,0.00038,30]
[424190023,1780635068000,-684.81445312,0.00038,2]
[424190017,1780635068000,-754.0,0.00038,30]
[424190012,1780635068000,-754.0,0.00038,30]
[424190025,1780635068000,-26317.72896677,0.00038,20]
[424190007,1780635068000,-754.0,0.00038,30]
[424190010,1780635068000,-754.0,0.00038,30]
[424189997,1780635068000,-754.0,0.00038,30]
[424189998,1780635068000,-754.0,0.00038,30]
[424189999,1780635068000,-754.0,0.00038,30]
[424190000,1780635068000,-754.0,0.00038,30]
[424190001,1780635068000,-754.0,0.00038,30]
[424190003,1780635068000,-754.0,0.00038,30]
[424189990,1780635068000,-754.0,0.00038,30]
[424190002,1780635068000,-754.0,0.00038,30]
[424190014,1780635068000,-754.0,0.00038,30]
[424190004,1780635068000,-754.0,0.00038,30]
[424190006,1780635068000,-754.0,0.00038,30]
[424190005,1780635068000,-754.0,0.00038,30]
[424190015,1780635068000,-754.0,0.00038,30]
[424190013,1780635068000,-754.0,0.00038,30]
[424190039,1780635069000,-2000.0,0.00026751,2]
[424190044,1780635069000,-108410.23995708,0.00038,2]
[424190040,1780635069000,-300.0,0.00035039,2]
[424190045,1780635069000,-441.40000001,0.00038,2]
[424190038,1780635069000,-2000.0,0.00026751,2]
[424190042,1780635069000,-363698.95846076,0.00038,2]
[424190041,1780635069000,-2000.0,0.000351,7]
[424190043,1780635069000,-300.0,0.00035039,2]
[424190031,1780635069000,-808.65898511,0.00038,2]
[424190046,1780635069000,-873.33210213,0.00011562,2]
[424190036,1780635069000,898.09033551,0.00011462,2]
[424190035,1780635069000,-618.5,0.00038,2]
[424190032,1780635069000,-5847.48719302,0.00038,2]
[424190033,1780635069000,-4360.89429808,0.00038,2]
[424190030,1780635069000,-1043.05790553,0.00038,2]
[424190029,1780635069000,-1763.2500001,0.00011639,2]
[424190037,1780635069000,443.02612345,0.00011462,2]
[424190047,1780635069000,-3304.96609787,0.00011562,2]
[424190034,1780635069000,-831.42172608,0.00038,2]
[424190049,1780635069000,-1427.4510362,0.00022012,2]
[424190065,1780635069000,-6197.52406449,0.00038,2]
[424190064,1780635069000,-300.0,0.00035039,2]
[424190063,1780635069000,-300.0,0.00035039,2]
[424190061,1780635069000,-301.26491033,0.00035039,2]
[424190066,1780635069000,-650.0,0.00022012,2]
[424190067,1780635069000,-399.19034779,0.00038,2]
[424190060,1780635069000,-6072.0,0.00029834,2]
[424190057,1780635069000,-650.0,0.00022012,2]
[424190062,1780635069000,-1097.74908549,0.00035039,2]
[424190058,1780635069000,-6072.0,0.00026834,2]
[424190059,1780635069000,-15107.64,0.00027397,10]
[424190052,1780635069000,-903.56113933,0.00022012,2]
[424190050,1780635069000,-572.5489638,0.00022012,2]
[424190054,1780635069000,-1887.0,0.00022012,2]
[424190051,1780635069000,-2000.0,0.00022012,2]
[424190055,1780635069000,-650.0,0.00022012,2]
[424190053,1780635069000,-1096.43886067,0.00022012,2]
[424190056,1780635069000,-650.0,0.00022012,2]
[424190048,1780635069000,-4322.52671961,0.00013427,2]
[424190068,1780635070000,152.0,0.00029912,120]
[424190069,1780635075000,333.546937,0.00029302,120]
[424190070,1780635079000,268.81522094,0.00011854,7]
[424190071,1780635080000,393.67202236,0.00011622,7]
[424190072,1780635081000,393.67202236,0.00011854,7]
[424190073,1780635082000,393.67202236,0.00012203,7]
[424190074,1780635201000,530.192987,0.00028221,120]
[424190076,1780635330000,337.664806,0.00026849,120]
[424190077,1780635355000,-182.13614606,0.00011504,2]
[424190078,1780635355000,166.773469,0.00026849,120]
[424190079,1780635391000,189.566208,0.00026581,120]